[Event "GER-chT Youth Countries 2020"]
[Site "Berlin"]
[Date "2020.10.03"]
[Round "6"]
[White "Schwenke, Mia"]
[Black "Reich, Elisabeth"]
[Result "1-0"]
[ECO "B75"]
[WhiteElo "1265"]
[BlackElo "1128"]
[Annotator "NA"]
[PlyCount "146"]
[EventDate "2020.09.30"]
[EventType "team-tourn"]
[EventRounds "7"]
[EventCountry "GER"]
[SourceTitle "playchess.com"]
[Source "ChessBase"]
[SourceQuality "1"]
[TimeControl "30/5400+30:0"]

1. e4 {[%emt 0:00:00]} c5 {[%emt 0:00:00]} 2. Nf3 {[%emt 0:00:00]} d6 {[%emt 0:00:00]} 3. d4 {[%emt 0:00:00]} cxd4 {[%emt 0:00:00]} 4. Nxd4 {[%emt 0:00:01]} Nf6 {[%emt 0:00:00]} 5. Nc3 {[%emt 0:00:12]} g6 {[%emt 0:00:00]} 6. Be3 {[%emt 0:00:08]} Bg7 {[%emt 0:00:00]} 7. f3 {[%emt 0:00:09]} Nc6 {[%emt 0:00:10]} 8. Qd2 {[%emt 0:00:21]} h5 {[%emt 0:00:12]} 9. O-O-O {[%emt 0:00:31]} Bd7 {[%emt 0:00:12]} 10. h3 {[%emt 0:00:19]} h4 {[%emt 0:00:15]} 11. Be2 {[%emt 0:01:09]} a6 {[%emt 0:00:55]} 12. f4 {[%emt 0:04:19]} Qc7 {[%emt 0:01:51]} 13. Bf3 {[%emt 0:03:00]} Rc8 {[%emt 0:01:41]} 14. Kb1 {[%emt 0:14:02]} b5 {[%emt 0:02:39]} 15. Rc1 {[%emt 0:11:52]} b4 {[%emt 0:01:24]} 16. Nd5 {[%emt 0:05:30]} Nxd5 {[%emt 0:00:31]} 17. exd5 {[%emt 0:00:17]} Nxd4 {[%emt 0:01:11]} 18. Bxd4 {[%emt 0:00:31]} Bxd4 {[%emt 0:00:28]} 19. Qxd4 {[%emt 0:00:14]} Rg8 {[%emt 0:00:18]} 20. Qxb4 {[%emt 0:04:41]} Rb8 {[%emt 0:04:07]} 21. Qd4 {[%emt 0:03:28]} Qa5 {[%emt 0:03:37]} 22. Rhe1 {[%emt 0:05:45]} Qb4 {[%emt 0:02:06]} 23. Qxb4 {[%emt 0:00:34]} Rxb4 {[%emt 0:00:28]} 24. Re4 {[%emt 0:00:24]} Rb6 {[%emt 0:01:03]} 25. Rce1 {[%emt 0:00:42]} e6 {[%emt 0:00:34]} 26. dxe6 {[%emt 0:04:11]} Bxe6 {[%emt 0:01:19]} 27. Bg4 {[%emt 0:03:22]} d5 {[%emt 0:00:39]} 28. Re5 {[%emt 0:05:04]} Kd7 {[%emt 0:00:38]} 29. Rxd5+ {[%emt 0:05:06]} Kc7 {[%emt 0:00:31]} 30. Bxe6 {[%emt 0:01:34]} fxe6 {[%emt 0:00:22]} 31. Rde5 {[%emt 1:33:56]} Kd7 {[%emt 1:30:48]} 32. Rd1+ {[%emt 0:01:45]} Kc7 {[%emt 0:00:30]} 33. Rc5+ {[%emt 0:01:10]} Kb8 {[%emt 0:00:38]} 34. a3 {[%emt 0:07:30]} Rf8 {[%emt 0:01:32]} 35. Rd4 {[%emt 0:01:12]} Kb7 {[%emt 0:00:38]} 36. Rcc4 {[%emt 0:05:35]} Rb5 {[%emt 0:00:59]} 37. Rb4 {[%emt 0:03:25]} Rh8 {[%emt 0:01:14]} 38. Rxb5+ {[%emt 0:02:05]} axb5 {[%emt 0:00:15]} 39. Rd6 {[%emt 0:00:52]} Re8 {[%emt 0:00:36]} 40. Rd7+ {[%emt 0:01:27]} Kc8 {[%emt 0:00:31]} 41. Rg7 {[%emt 0:00:33]} Rf8 {[%emt 0:00:31]} 42. Rxg6 {[%emt 0:02:20]} Rxf4 {[%emt 0:00:10]} 43. Rxe6 {[%emt 0:00:00]} Rf1+ {[%emt 0:00:00]} 44. Ka2 {[%emt 0:00:00]} Rf2 {[%emt 0:00:00]} 45. c3 {[%emt 0:00:00]} Rxg2 {[%emt 0:00:00]} 46. Re4 {[%emt 0:00:00]} Kb7 {[%emt 0:00:00]} 47. Rxh4 {[%emt 0:00:00]} Rh2 {[%emt 0:00:00]} 48. Rh7+ {[%emt 0:00:00]} Kb6 {[%emt 0:00:00]} 49. h4 {[%emt 0:00:00]} Kc5 {[%emt 0:00:00]} 50. h5 {[%emt 0:00:00]} Kc4 {[%emt 0:00:00]} 51. Rd7 {[%emt 0:00:00]} Rxh5 {[%emt 0:00:00]} 52. Rd4+ {[%emt 0:00:00]} Kc5 {[%emt 0:00:00]} 53. a4 {[%emt 0:00:00]} bxa4 {[%emt 0:00:00]} 54. Rxa4 {[%emt 0:00:00]} Rh2 {[%emt 0:00:00]} 55. Kb3 {[%emt 0:00:00]} Rh3 {[%emt 0:00:00]} 56. Ra5+ {[%emt 0:00:00]} Kb6 {[%emt 0:00:00]} 57. Kb4 {[%emt 0:00:00]} Rh2 {[%emt 0:00:00]} 58. b3 {[%emt 0:00:00]} Rh4+ {[%emt 0:00:00]} 59. c4 {[%emt 0:00:00]} Rg4 {[%emt 0:00:00]} 60. Rb5+ {[%emt 0:00:00]} Kc6 {[%emt 0:00:00]} 61. Re5 {[%emt 1:28:01]} Kd6 {[%emt 1:05:06]} 62. Ra5 {[%emt 0:00:29]} Kc6 {[%emt 0:00:14]} 63. Ra6+ {[%emt 0:00:09]} Kb7 {[%emt 0:00:14]} 64. Kb5 {[%emt 0:00:15]} Rg5+ {[%emt 0:00:40]} 65. c5 {[%emt 0:00:14]} Rxc5+ {[%emt 0:00:05]} 66. Kxc5 {[%emt 0:00:08]} Kxa6 {[%emt 0:00:05]} 67. b4 {[%emt 0:00:58]} Ka7 {[%emt 0:00:29]} 68. Kc6 {[%emt 0:06:19]} Kb8 {[%emt 0:01:00]} 69. Kb6 {[%emt 0:00:57]} Ka8 {[%emt 0:00:10]} 70. Kc7 {[%emt 0:01:12]} Ka7 {[%emt 0:00:13]} 71. b5 {[%emt 0:00:21]} Ka8 {[%emt 0:00:25]} 72. Kb6 {[%emt 0:00:13]} Kb8 {[%emt 0:00:15]} 73. Kc6 {[%emt 0:00:19]} Ka7 {[%emt 0:00:57]} 1-0

[Event "GER-chT Youth Countries 2020"]
[Site "Berlin"]
[Date "2020.10.03"]
[Round "6"]
[White "Zimmer, Tim"]
[Black "Braeutigam, Katerina"]
[Result "0-1"]
[ECO "B10"]
[WhiteElo "1025"]
[BlackElo "1744"]
[Annotator "NA"]
[PlyCount "106"]
[EventDate "2020.09.30"]
[EventType "team-tourn"]
[EventRounds "7"]
[EventCountry "GER"]
[SourceTitle "playchess.com"]
[Source "ChessBase"]
[SourceQuality "1"]
[TimeControl "30/5400+30:0"]

1. e4 {[%emt 0:00:00]} c6 {[%emt 0:00:00]} 2. Nf3 {[%emt 0:00:07]} d5 {[%emt 0:00:00]} 3. Nc3 {[%emt 0:00:17]} g6 {[%emt 0:00:00]} 4. d4 {[%emt 0:00:28]} dxe4 {[%emt 0:00:09]} 5. Nxe4 {[%emt 0:00:17]} Bg7 {[%emt 0:00:08]} 6. c3 {[%emt 0:00:29]} Nf6 {[%emt 0:00:10]} 7. Ng3 {[%emt 0:01:37]} Bg4 {[%emt 0:01:14]} 8. h3 {[%emt 0:00:38]} Bxf3 {[%emt 0:00:16]} 9. Qxf3 {[%emt 0:00:08]} Nbd7 {[%emt 0:01:07]} 10. Bf4 {[%emt 0:02:59]} Nb6 {[%emt 0:03:31]} 11. Be5 {[%emt 0:02:46]} Nbd7 {[%emt 0:08:48]} 12. Bxf6 {[%emt 0:09:11]} Nxf6 {[%emt 0:07:29]} 13. Bc4 {[%emt 0:00:57]} O-O {[%emt 0:00:54]} 14. O-O {[%emt 0:00:59]} Qc7 {[%emt 0:04:36]} 15. Bb3 {[%emt 0:04:24]} Rab8 {[%emt 0:08:00]} 16. Rad1 {[%emt 0:09:22]} c5 {[%emt 0:08:48]} 17. dxc5 {[%emt 0:00:13]} Qxc5 {[%emt 0:00:34]} 18. Ne4 {[%emt 0:00:46]} Nxe4 {[%emt 0:02:37]} 19. Qxe4 {[%emt 0:00:28]} Qc7 {[%emt 0:02:37]} 20. Rd3 {[%emt 0:02:36]} Be5 {[%emt 0:07:16]} 21. Rfd1 {[%emt 0:01:28]} Bd6 {[%emt 0:04:33]} 22. Qf3 {[%emt 0:12:55]} a5 {[%emt 0:09:02]} 23. h4 {[%emt 0:08:31]} h5 {[%emt 0:04:24]} 24. g4 {[%emt 0:02:07]} hxg4 {[%emt 0:24:39]} 25. Qxg4 {[%emt 0:00:27]} Kg7 26. Rh3 {[%emt 0:03:28]} Qc8 {[%emt 0:01:29]} 27. Qd4+ {[%emt 0:00:58]} f6 {[%emt 0:00:12]} 28. Rdd3 {[%emt 0:00:59]} Qf5 {[%emt 0:00:52]} 29. Rdf3 {[%emt 0:04:08]} Qe5 {[%emt 0:00:27]} 30. Qd3 {[%emt 0:03:58]} Rbd8 {[%emt 0:00:31]} 31. Bc2 {[%emt 1:30:55]} f5 {[%emt 1:30:30]} 32. h5 {[%emt 0:02:56]} Qe1+ {[%emt 0:00:16]} 33. Kg2 {[%emt 0:00:15]} Bh2 {[%emt 0:00:41]} 34. h6+ {[%emt 0:03:06]} Kh7 {[%emt 0:00:23]} 35. Qf1 {[%emt 0:01:08]} Qxf1+ {[%emt 0:00:15]} 36. Kxf1 {[%emt 0:00:04]} Bc7 {[%emt 0:00:57]} 37. Re3 {[%emt 0:00:12]} e5 {[%emt 0:00:24]} 38. Ke2 {[%emt 0:02:02]} e4 {[%emt 0:00:35]} 39. f3 {[%emt 0:00:23]} Bf4 {[%emt 0:00:19]} 40. fxe4 {[%emt 0:00:37]} Bxe3 {[%emt 0:00:30]} 41. Kxe3 {[%emt 0:00:09]} f4+ {[%emt 0:00:00]} 42. Ke2 {[%emt 0:00:00]} f3+ {[%emt 0:00:00]} 43. Rxf3 {[%emt 0:00:00]} Rxf3 {[%emt 0:00:00]} 44. Kxf3 {[%emt 0:00:00]} Rd2 {[%emt 0:00:00]} 45. Bb3 {[%emt 0:00:00]} Kxh6 {[%emt 0:00:00]} 46. e5 {[%emt 0:00:00]} Kg7 {[%emt 0:00:00]} 47. Ke4 {[%emt 0:00:00]} b6 {[%emt 0:00:00]} 48. e6 {[%emt 0:00:00]} Kf6 {[%emt 0:00:00]} 49. Ke3 {[%emt 0:00:00]} Rxb2 {[%emt 0:00:00]} 50. Ke4 {[%emt 0:00:00]} Re2+ {[%emt 0:00:37]} 51. Kd4 {[%emt 0:00:00]} Rxe6 {[%emt 0:00:36]} 52. Bxe6 {[%emt 0:00:00]} Kxe6 {[%emt 0:00:04]} 53. Ke4 {[%emt 0:00:00]} Kd6 {[%emt 0:00:36]} 0-1

[Event "GER-chT Youth Countries 2020"]
[Site "Berlin"]
[Date "2020.10.03"]
[Round "6"]
[White "Chassard, Cecilia"]
[Black "Ottlik, Marie"]
[Result "0-1"]
[ECO "B01"]
[WhiteElo "980"]
[BlackElo "1454"]
[Annotator "NA"]
[PlyCount "114"]
[EventDate "2020.09.30"]
[EventType "team-tourn"]
[EventRounds "7"]
[EventCountry "GER"]
[SourceTitle "playchess.com"]
[Source "ChessBase"]
[SourceQuality "1"]
[TimeControl "30/5400+30:0"]

1. e4 {[%emt 0:00:00]} d5 {[%emt 0:00:00]} 2. exd5 {[%emt 0:00:00]} Nf6 {[%emt 0:00:00]} 3. Nf3 {[%emt 0:00:00]} Nxd5 {[%emt 0:00:00]} 4. Bc4 {[%emt 0:00:02]} Nb6 {[%emt 0:02:31]} 5. Bb3 {[%emt 0:00:06]} Bf5 {[%emt 0:01:38]} 6. O-O {[%emt 0:06:06]} e6 {[%emt 0:01:35]} 7. Re1 {[%emt 0:00:56]} Be7 {[%emt 0:01:54]} 8. d4 {[%emt 0:00:54]} O-O {[%emt 0:01:27]} 9. Nc3 {[%emt 0:06:31]} Nc6 {[%emt 0:02:45]} 10. d5 {[%emt 0:03:01]} Nb4 {[%emt 0:03:48]} 11. a3 {[%emt 0:02:58]} N4xd5 {[%emt 0:02:21]} 12. Nxd5 {[%emt 0:01:40]} Nxd5 {[%emt 0:00:14]} 13. Bxd5 {[%emt 0:00:43]} exd5 {[%emt 0:00:54]} 14. Re5 {[%emt 0:01:00]} Be4 {[%emt 0:13:45]} 15. c4 {[%emt 0:00:29]} Bf6 {[%emt 0:02:58]} 16. Rh5 {[%emt 0:00:56]} dxc4 {[%emt 0:00:31]} 17. Bg5 {[%emt 0:01:19]} Bxg5 {[%emt 0:01:57]} 18. Nxg5 {[%emt 0:00:09]} Bg6 {[%emt 0:01:19]} 19. Rh4 {[%emt 0:00:47]} Qxg5 {[%emt 0:01:46]} 20. Rg4 {[%emt 0:00:43]} Qd8 {[%emt 0:01:02]} 21. Rxc4 {[%emt 0:00:18]} Qxd1+ {[%emt 0:00:41]} 22. Rxd1 {[%emt 0:00:07]} Rad8 {[%emt 0:00:17]} 23. Re1 {[%emt 0:01:14]} Rfe8 {[%emt 0:01:05]} 24. Rxe8+ {[%emt 0:00:40]} Rxe8 {[%emt 0:00:07]} 25. h3 {[%emt 0:00:05]} c6 {[%emt 0:01:02]} 26. Rb4 {[%emt 0:00:22]} b5 {[%emt 0:01:32]} 27. Rb3 {[%emt 0:00:12]} f6 {[%emt 0:00:45]} 28. Rc3 {[%emt 0:00:31]} Re6 {[%emt 0:01:42]} 29. g4 {[%emt 0:00:34]} Rd6 {[%emt 0:01:06]} 30. a4 {[%emt 0:00:27]} a6 {[%emt 0:00:53]} 31. axb5 {[%emt 1:30:29]} axb5 {[%emt 1:30:09]} 32. Ra3 {[%emt 0:00:08]} Rd1+ {[%emt 0:01:00]} 33. Kh2 {[%emt 0:00:08]} Be4 {[%emt 0:00:54]} 34. Ra8+ {[%emt 0:00:12]} Kf7 {[%emt 0:00:59]} 35. Ra7+ {[%emt 0:00:11]} Kg6 {[%emt 0:04:41]} 36. Re7 {[%emt 0:00:28]} Bd5 {[%emt 0:00:38]} 37. f4 {[%emt 0:00:50]} f5 {[%emt 0:01:41]} 38. Kg3 {[%emt 0:01:04]} Kf6 {[%emt 0:02:29]} 39. Re5 {[%emt 0:00:25]} fxg4 {[%emt 0:01:14]} 40. hxg4 {[%emt 0:00:18]} Rg1+ {[%emt 0:01:54]} 41. Kf2 {[%emt 0:00:32]} Rxg4 {[%emt 0:00:38]} 42. Ke3 {[%emt 0:00:54]} g5 {[%emt 0:03:01]} 43. Re8 {[%emt 0:00:16]} gxf4+ {[%emt 0:00:26]} 44. Kf2 {[%emt 0:00:17]} Kf7 {[%emt 0:01:53]} 45. Re5 {[%emt 0:00:25]} Kf6 {[%emt 0:01:19]} 46. Re2 {[%emt 0:00:22]} Rg2+ {[%emt 0:00:12]} 47. Kf1 {[%emt 0:00:12]} Rxe2 {[%emt 0:00:09]} 48. Kxe2 {[%emt 0:00:13]} f3+ {[%emt 0:00:03]} 49. Kf1 {[%emt 0:00:04]} c5 {[%emt 0:00:09]} 50. b4 {[%emt 0:00:10]} cxb4 {[%emt 0:00:33]} 51. Kf2 {[%emt 0:00:07]} b3 {[%emt 0:00:33]} 52. Ke1 {[%emt 0:00:07]} b2 {[%emt 0:00:08]} 53. Kd1 {[%emt 0:00:09]} b1=Q+ {[%emt 0:00:14]} 54. Kd2 {[%emt 0:00:05]} Qb2+ {[%emt 0:00:55]} 55. Kd1 {[%emt 0:00:07]} Qe2+ {[%emt 0:00:24]} 56. Kc1 {[%emt 0:00:11]} f2 {[%emt 0:01:02]} 57. Kb1 {[%emt 0:00:13]} f1=Q# {[%emt 0:00:06]} 0-1

[Event "GER-chT Youth Countries 2020"]
[Site "Berlin"]
[Date "2020.10.04"]
[Round "7"]
[White "Roseneck, Jonas"]
[Black "Krastev, Alexander"]
[Result "0-1"]
[ECO "C88"]
[WhiteElo "2417"]
[BlackElo "2340"]
[Annotator "ChessBase"]
[PlyCount "124"]
[EventDate "2020.09.30"]
[EventType "team-tourn"]
[EventRounds "7"]
[EventCountry "GER"]
[SourceTitle "playchess.com"]
[Source "ChessBase"]
[SourceQuality "1"]
[TimeControl "30/5400+30:0"]

1. e4 {[%emt 0:00:00]} e5 {[%emt 0:00:00]} 2. Nf3 {[%emt 0:00:00]} Nc6 {[%emt 0:00:00]} 3. Bb5 {[%emt 0:00:00]} a6 {[%emt 0:00:00]} 4. Ba4 {[%emt 0:00:00]} Nf6 {[%emt 0:00:00]} 5. O-O {[%emt 0:00:00]} Be7 {[%emt 0:00:01]} 6. Re1 {[%emt 0:00:07]} b5 {[%emt 0:00:04]} 7. Bb3 {[%emt 0:00:03]} O-O {[%emt 0:00:04]} 8. a4 {[%emt 0:00:49]} d5 9. axb5 dxe4 {[%emt 0:01:19]} 10. bxc6 {[%emt 0:21:08]} exf3 {[%emt 0:00:08]} 11. Qxf3 {[%emt 0:00:23]} e4 {[%emt 0:00:16]} 12. Qe3 {[%emt 0:03:26]} Ng4 13. Qxe4 {[%emt 0:10:00]} Bc5 {[%emt 0:04:35]} 14. d4 {[%emt 0:02:33]} Qh4 15. Be3 {[%emt 0:10:40]} Qxh2+ {[%emt 0:06:37]} 16. Kf1 {[%emt 0:13:20]} Bd6 {[%emt 0:43:32]} 17. Nc3 {[%emt 0:14:26]} Qh5 18. Bf4 Nf6 {[%emt 0:20:58]} 19. Qe3 {[%emt 0:02:13]} Qh1+ {[%emt 0:01:54]} 20. Ke2 {[%emt 0:00:01]} Qxg2 21. Bxd6 {[%emt 0:03:53]} cxd6 {[%emt 0:00:10]} 22. Rg1 {[%emt 0:00:15]} Bg4+ {[%emt 0:00:47]} 23. Kd2 {[%emt 0:02:00]} Qxc6 {[%emt 0:00:03]} 24. d5 {[%emt 0:05:46]} Qd7 {[%emt 0:02:15]} 25. Qg3 {[%emt 0:03:05]} g6 {[%emt 0:04:41]} 26. Ra4 Bh5 {[%emt 0:03:25]} 27. Qg5 {[%emt 0:05:33]} Qd8 28. Kc1 {[%emt 0:01:04]} Re8 {[%emt 0:00:35]} 29. Rh4 {[%emt 0:00:51]} Re5 30. Qg3 {[%emt 0:01:25]} Qe7 {[%emt 0:01:51]} 31. f4 {[%emt 1:30:00]} Re3 {[%emt 1:31:01]} 32. Qf2 {[%emt 0:00:34]} Rf3 {[%emt 0:02:06]} 33. Qh2 {[%emt 0:00:31]} Qe3+ {[%emt 0:00:43]} 34. Kb1 {[%emt 0:00:09]} Rf2 {[%emt 0:00:20]} 35. Qh1 {[%emt 0:02:06]} Re8 36. Ka2 {[%emt 0:00:58]} Rxf4 {[%emt 0:04:49]} 37. Rxf4 {[%emt 0:00:27]} Qxf4 {[%emt 0:00:07]} 38. Rf1 {[%emt 0:00:01]} Qe5 {[%emt 0:00:41]} 39. Qh4 {[%emt 0:00:22]} Kg7 {[%emt 0:00:43]} 40. Qa4 Bg4 {[%emt 0:01:48]} 41. Rxf6 {[%emt 0:00:00]} Kxf6 {[%emt 0:00:00]} 42. Qxg4 {[%emt 0:00:00]} h5 {[%emt 0:00:00]} 43. Qh4+ {[%emt 0:00:00]} Kg7 44. Bc4 {[%emt 0:00:00]} Qf6 {[%emt 0:00:00]} 45. Qh2 {[%emt 0:00:00]} Qd4 {[%emt 0:00:00]} 46. Bd3 {[%emt 0:00:00]} Re5 47. Ne2 {[%emt 0:00:00]} Qxd5+ {[%emt 0:00:00]} 48. b3 {[%emt 0:00:00]} Qf3 {[%emt 0:00:00]} 49. Nf4 {[%emt 0:00:00]} Qe3 {[%emt 0:00:00]} 50. b4 {[%emt 0:00:00]} Qe1 {[%emt 0:00:00]} 51. Kb3 {[%emt 0:00:00]} Qb1+ {[%emt 0:00:00]} 52. Kc4 {[%emt 0:00:00]} Qa2+ {[%emt 0:00:00]} 53. Kc3 {[%emt 0:00:00]} Qa3+ {[%emt 0:00:00]} 54. Kc4 {[%emt 0:00:00]} a5 {[%emt 0:00:00]} 55. c3 {[%emt 0:00:00]} Qa4 {[%emt 0:00:00]} 56. Qd2 {[%emt 0:00:00]} axb4 {[%emt 0:00:00]} 57. cxb4 {[%emt 0:00:00]} Rc5+ {[%emt 0:00:00]} 58. Kd4 {[%emt 0:00:00]} Qa1+ {[%emt 0:00:00]} 59. Ke3 {[%emt 0:00:00]} Qg1+ {[%emt 0:00:35]} 60. Kf3 {[%emt 0:00:00]} Re5 {[%emt 0:01:23]} 61. Ng2 {[%emt 1:26:32]} Qd4 {[%emt 1:31:03]} 62. Nf4 {[%emt 0:01:21]} Rf5 {[%emt 0:02:45]} 0-1

[Event "GER-chT Youth Countries 2020"]
[Site "Berlin"]
[Date "2020.10.04"]
[Round "7"]
[White "Reuker, Jari"]
[Black "Vogel, Roven"]
[Result "1/2-1/2"]
[ECO "A30"]
[WhiteElo "2401"]
[BlackElo "2456"]
[Annotator "ChessBase"]
[PlyCount "44"]
[EventDate "2020.09.30"]
[EventType "team-tourn"]
[EventRounds "7"]
[EventCountry "GER"]
[SourceTitle "playchess.com"]
[Source "ChessBase"]
[SourceQuality "1"]
[TimeControl "30/5400+30:0"]

1. c4 {[%emt 0:00:00]} c5 {[%emt 0:00:06]} 2. Nf3 {[%emt 0:00:03]} Nf6 {[%emt 0:00:50]} 3. b3 {[%emt 0:02:41]} d5 {[%emt 0:06:41]} 4. cxd5 {[%emt 0:00:14]} Nxd5 {[%emt 0:00:08]} 5. e3 {[%emt 0:02:37]} Nc6 {[%emt 0:05:30]} 6. Bb2 {[%emt 0:00:19]} Ndb4 {[%emt 0:02:34]} 7. d3 {[%emt 0:10:35]} Bf5 {[%emt 0:02:03]} 8. e4 {[%emt 0:00:19]} Bg4 {[%emt 0:00:33]} 9. a3 {[%emt 0:00:27]} Bxf3 {[%emt 0:06:20]} 10. gxf3 {[%emt 0:00:10]} Na6 {[%emt 0:00:06]} 11. b4 {[%emt 0:12:41]} Nc7 {[%emt 0:04:36]} 12. f4 {[%emt 0:23:40]} e5 {[%emt 0:07:05]} 13. fxe5 {[%emt 0:09:23]} Ne6 {[%emt 0:00:49]} 14. b5 {[%emt 0:03:08]} Ncd4 {[%emt 0:01:22]} 15. Nc3 {[%emt 0:00:10]} Qg5 {[%emt 0:03:53]} 16. Nd5 {[%emt 0:01:38]} Qxe5 {[%emt 0:04:05]} 17. Bh3 {[%emt 0:05:24]} Rd8 {[%emt 0:02:23]} 18. O-O {[%emt 0:06:25]} Rxd5 {[%emt 0:04:43]} 19. Bxe6 {[%emt 0:03:15]} Rd8 {[%emt 0:12:50]} 20. Bd5 {[%emt 0:04:54]} Qf4 {[%emt 0:02:53]} 21. Bxd4 {[%emt 0:00:42]} cxd4 {[%emt 0:00:34]} 22. Bxb7 {[%emt 0:04:26]} Bd6 {[%emt 0:04:57]} 1/2-1/2

[Event "GER-chT Youth Countries 2020"]
[Site "Berlin"]
[Date "2020.10.04"]
[Round "7"]
[White "Nguyen, Alex Dac-Vuong"]
[Black "Colbow, Collin"]
[Result "0-1"]
[ECO "B54"]
[WhiteElo "2343"]
[BlackElo "2210"]
[Annotator "ChessBase"]
[PlyCount "64"]
[EventDate "2020.09.30"]
[EventType "team-tourn"]
[EventRounds "7"]
[EventCountry "GER"]
[SourceTitle "playchess.com"]
[Source "ChessBase"]
[SourceQuality "1"]
[TimeControl "30/5400+30:0"]

1. e4 {[%emt 0:00:00]} c5 {[%emt 0:00:07]} 2. Nf3 {[%emt 0:00:00]} d6 {[%emt 0:00:07]} 3. d4 {[%emt 0:00:00]} cxd4 {[%emt 0:00:07]} 4. Nxd4 {[%emt 0:00:00]} Nf6 {[%emt 0:00:07]} 5. f3 {[%emt 0:00:02]} e5 {[%emt 0:03:42]} 6. Nb3 {[%emt 0:00:07]} Be6 {[%emt 0:02:40]} 7. c4 {[%emt 0:00:10]} Be7 {[%emt 0:01:49]} 8. Be3 {[%emt 0:00:24]} Nbd7 {[%emt 0:10:01]} 9. Nc3 {[%emt 0:01:36]} O-O {[%emt 0:02:44]} 10. Be2 {[%emt 0:04:09]} Nh5 {[%emt 0:08:37]} 11. g3 {[%emt 0:12:30]} g6 {[%emt 0:07:47]} 12. Qd2 {[%emt 0:21:40]} a6 {[%emt 0:04:44]} 13. Nd5 {[%emt 0:04:57]} f5 {[%emt 0:20:30]} 14. exf5 {[%emt 0:01:25]} gxf5 {[%emt 0:06:58]} 15. Rd1 {[%emt 0:03:51]} f4 {[%emt 0:03:01]} 16. Nxe7+ {[%emt 0:00:40]} Qxe7 {[%emt 0:00:02]} 17. Bf2 {[%emt 0:00:19]} e4 {[%emt 0:01:37]} 18. Qxd6 {[%emt 0:05:04]} Rae8 {[%emt 0:06:22]} 19. Qxe7 {[%emt 0:04:35]} Rxe7 {[%emt 0:00:02]} 20. fxe4 {[%emt 0:00:40]} f3 {[%emt 0:00:24]} 21. Bd3 {[%emt 0:00:41]} Ne5 {[%emt 0:01:38]} 22. Bc5 {[%emt 0:14:07]} f2+ {[%emt 0:01:09]} 23. Bxf2 {[%emt 0:00:06]} Nf3+ {[%emt 0:00:22]} 24. Ke2 {[%emt 0:00:10]} Bg4 {[%emt 0:00:26]} 25. Ke3 {[%emt 0:01:20]} Ng5 {[%emt 0:10:34]} 26. Rd2 {[%emt 0:08:27]} Rf3+ {[%emt 0:03:07]} 27. Ke2 {[%emt 0:00:11]} Nxe4 {[%emt 0:00:37]} 28. Bxe4 {[%emt 0:00:16]} Rxe4+ {[%emt 0:00:02]} 29. Kd1 {[%emt 0:00:45]} Rc3+ {[%emt 0:00:41]} 30. Re2 {[%emt 0:00:32]} Bxe2+ {[%emt 0:00:06]} 31. Kd2 {[%emt 1:30:06]} Rd3+ {[%emt 1:30:06]} 32. Ke1 {[%emt 0:00:03]} Rd1# {[%emt 0:00:06]} 0-1

[Event "GER-chT Youth Countries 2020"]
[Site "Berlin"]
[Date "2020.10.04"]
[Round "7"]
[White "Faerber, David"]
[Black "Muckle, Julius"]
[Result "0-1"]
[ECO "C13"]
[WhiteElo "2321"]
[BlackElo "2427"]
[Annotator "ChessBase"]
[PlyCount "59"]
[EventDate "2020.09.30"]
[EventType "team-tourn"]
[EventRounds "7"]
[EventCountry "GER"]
[SourceTitle "playchess.com"]
[Source "ChessBase"]
[SourceQuality "1"]
[TimeControl "30/5400+30:0"]

1. e4 {[%emt 0:00:00]} e6 {[%emt 0:00:00]} 2. d4 {[%emt 0:00:00]} d5 {[%emt 0:00:00]} 3. Nc3 {[%emt 0:00:00]} Nf6 {[%emt 0:00:00]} 4. Bg5 {[%emt 0:00:02]} Be7 {[%emt 0:00:00]} 5. e5 {[%emt 0:00:14]} Nfd7 {[%emt 0:00:00]} 6. h4 {[%emt 0:00:08]} h6 {[%emt 0:00:00]} 7. Bxe7 {[%emt 0:00:05]} Qxe7 {[%emt 0:00:00]} 8. f4 {[%emt 0:00:09]} O-O {[%emt 0:00:28]} 9. g4 {[%emt 0:00:06]} f6 {[%emt 0:26:06]} 10. exf6 {[%emt 0:00:25]} Qxf6 {[%emt 0:05:39]} 11. Nge2 {[%emt 0:00:27]} Qe7 {[%emt 0:21:08]} 12. Qd2 {[%emt 0:03:05]} c5 {[%emt 0:03:08]} 13. dxc5 {[%emt 0:12:06]} Nxc5 {[%emt 0:04:20]} 14. O-O-O {[%emt 0:00:33]} Nc6 {[%emt 0:05:20]} 15. Bg2 {[%emt 0:17:57]} Bd7 {[%emt 0:02:26]} 16. g5 {[%emt 0:22:52]} h5 {[%emt 0:08:27]} 17. Ng3 {[%emt 0:04:50]} Rac8 {[%emt 0:04:08]} 18. Rhe1 {[%emt 0:09:57]} d4 {[%emt 0:01:13]} 19. Nce4 {[%emt 0:05:20]} Nb4 {[%emt 0:01:04]} 20. Kb1 {[%emt 0:02:18]} Ba4 {[%emt 0:05:25]} 21. b3 {[%emt 0:03:27]} d3 {[%emt 0:02:54]} 22. c3 {[%emt 0:03:15]} Nxb3 {[%emt 0:03:50]} 23. axb3 {[%emt 0:00:12]} Bxb3 {[%emt 0:00:06]} 24. cxb4 {[%emt 0:01:58]} Bc2+ {[%emt 0:00:59]} 25. Kb2 {[%emt 0:10:24]} Bxd1 {[%emt 0:01:13]} 26. Nc5 {[%emt 0:00:05]} Bg4 {[%emt 0:01:23]} 27. f5 {[%emt 0:00:33]} b6 {[%emt 0:02:35]} 28. Nxd3 {[%emt 0:00:55]} Qd6 {[%emt 0:00:16]} 29. Re3 {[%emt 0:01:25]} Qd4+ {[%emt 0:00:17]} 30. Kb3 {[%emt 0:00:12]} 0-1